Cogmind - Beta 16 @@@ ROGUE MODE // 2025.11.02 @ 13:52:15 Player: rt Result: Self-destructed Performance ------------- Evolutions (1) 500 Regions Visited (2) 400 Robots Destroyed (9) 45 Value Destroyed (162) 162 Prototype IDs (2) 40 Alien Tech Used (0) 0 Bonus (0) 0 TOTAL SCORE: 1147 Bonus ------- None Cogmind --------- Core Integrity 187/400 Matter 288/300 Energy 234/280 System Corruption 1% Temperature Cool (10) Movement Core (350) Ox6 Location -9/Materials Parts ------- > --- POWER (1) -------- Heavy Ion Engine > --- PROPULSION (4) --- (None) > --- UTILITY (2) ------ Medium Storage Unit Visual Processing Unit > --- WEAPON (2) ------- Improved Assault Rifle > --- INVENTORY (10) --- Ion Engine Light Ion Engine Aluminum Leg Aluminum Leg Improved Heat Sink Disposable Heat Sink Small Storage Unit Improved Terrain Scanner Seismic Detector Medium Laser Peak State ------------ > --- POWER ------------ Heavy Ion Engine > --- PROPULSION ------- Aluminum Leg Aluminum Leg > --- UTILITY ---------- Medium Storage Unit Visual Processing Unit > --- WEAPON ----------- Medium Laser Improved Assault Rifle > --- INVENTORY -------- Ion Engine Light Ion Engine Aluminum Leg Aluminum Leg Improved Heat Sink Disposable Heat Sink Small Storage Unit Improved Terrain Scanner Seismic Detector Medium Laser [Rating: 13] Favorites ----------- Power Ion Engine Engine Ion Engine Propulsion Aluminum Leg Leg Aluminum Leg Utility Visual Processing Unit Device Improved Terrain Scanner Storage Medium Storage Unit Processor Visual Processing Unit Weapon Medium Laser Energy Gun Medium Laser Ballistic Gun Assault Rifle Build | -11 -10 -9 ------- Run | Yrd Mat Mat Slots Evolved 2 | . . 2 Power . | . . . Propulsion 2 | . . 2 Utility . | . . . Weapon . | . . . Parts Attached 15 | 8 2 5 Power 3 | 2 . 1 Engine 3 | 2 . 1 Core . | . . . Reactor . | . . . Propulsion 4 | 2 . 2 Treads . | . . . Leg 4 | 2 . 2 Wheel . | . . . Hover . | . . . Flight . | . . . Utility 4 | 2 2 . Device 1 | 1 . . Storage 2 | 1 1 . Processor 1 | . 1 . Hackware . | . . . Protection . | . . . Artifact . | . . . Weapon 4 | 2 . 2 Energy Gun 2 | 1 . 1 Energy Cannon . | . . . Ballistic Gun 2 | 1 . 1 Ballistic Cannon . | . . . Launcher . | . . . Special Weapon . | . . . Impact Weapon . | . . . Slashing Weapon . | . . . Piercing Weapon . | . . . Special Melee Weapon . | . . . Unidentified Prototypes 2 | . . 2 Parts Lost 7 | . . 7 Power 1 | . . 1 Propulsion 4 | . . 4 Utility . | . . . Weapon 2 | . . 2 Highest Loss Streak 4 | . . 4 To Critical Strikes . | . . . Average Backups 6 | 1 7 8 Power 1 | . 1 2 Propulsion 1 | . 1 1 Utility 3 | . 2 4 Weapon . | . 1 . Tool/Special . | . . . Unused Backups 7 | . 1 6 Power 1 | . . 1 Propulsion 3 | . 1 2 Utility 3 | . . 3 Weapon . | . . . Tool/Special . | . . . Average Slot Usage (%) 95 | . 100 88 Engine 11 | . 14 8 Leg 32 | . 28 39 Device 1 | . 3 . Storage 12 | . 14 11 Processor 10 | . 10 11 Energy Gun 13 | . 14 13 Ballistic Gun 10 | . 14 5 Peak Build Rating 13 | 9 10 13 Average Rating 8 | 5 9 10 On Entrance 6 | . 9 9 Avg Prop Armor Cover (%) . | . . . Naked Turns . | . . . Heaviest Build 22 | 15 19 22 Greatest Support 40 | 20 20 40 Greatest Overweight (x) 2 | . . 2 Average Overweight (x) . | . . . Largest Inventory Capacity 10 | 8 10 10 Average Capacity 8 | 7 8 10 Most Carried 10 | 4 10 10 Average Carried 7 | 1 7 8 Final Capacity 10 | 8 10 10 Final Carried 10 | 3 10 10 Class Distribution -------------------- 100% | Mutant Dominant Class ---------------- Mutant | -10/Materials Mutant | -9/Materials Resources | -11 -10 -9 ----------- Run | Yrd Mat Mat Matter Collected 397 | 289 55 53 Remotely . | . . . Salvage Created 263 | 25 78 160 Parts 18 | 4 4 10 Haulers Intercepted 1 | . 1 . Recyclers Shooed . | . . . Parts Field Recycled . | . . . Retrieved Matter . | . . . Parts Self-Destructed . | . . . Prevented . | . . . Parts Restored . | . . . Kills | -11 -10 -9 ------- Run | Yrd Mat Mat Combat Hostiles Destroyed 7 | . 1 6 Guns 7 | . 1 6 Classes Destroyed 5 | 1 2 2 Tunneler 1 | 1 . . Hauler 1 | . 1 . Swarmer 4 | . . 4 Grunt 2 | . 1 1 Sentry 1 | . . 1 Best Kill Streak 4 | 1 1 4 Combat Bots Only 4 | . 1 4 Max Kills in Single Turn 1 | 1 1 1 Gunslinging . | . . . Exploded . | . . . Melee . | . . . Uniques/NPCs Destroyed . | . . . Combat | -11 -10 -9 -------- Run | Yrd Mat Mat Hostile Shots Fired 134 | . 10 124 Missed 54 | . 4 50 Hits 80 | . 6 74 Melee 4 | . . 4 Projectile 76 | . 6 70 Critical Strikes 3 | . . 3 Damage Taken 1066 | . 66 1000 Core 213 | . . 213 Absorbed by Shields . | . . . Core Remaining (%) 100 | 100 100 . Volleys Fired 37 | 3 14 20 Largest 2 | 2 2 2 Hottest 100 | 70 70 100 Shots Fired 65 | 6 28 31 Gun 65 | 6 28 31 Cannon . | . . . Launcher . | . . . Special . | . . . Kinetic 28 | 3 14 11 Thermal 37 | 3 14 20 Explosive . | . . . Electromagnetic . | . . . Robot Hit Streak 19 | 3 6 19 Robot Miss Streak 4 | 1 4 2 Penetration Max . | . . . Secondary Targets . | . . . Shots Hit Robots 46 | 4 16 26 Core Hits 14 | 1 4 9 Critical Kills . | . . . Critical Parts Destroyed . | . . . Critical Strikes 2 | . . 2 Burn 2 | . . 2 Melee Attacks . | . . . Impact . | . . . Slashing . | . . . Piercing . | . . . Sneak Attacks . | . . . Combat Hostiles . | . . . Follow-up Attacks . | . . . Damage Inflicted 606 | 55 207 344 Guns 606 | 55 207 344 Cannons . | . . . Explosions . | . . . Melee . | . . . Ramming . | . . . Kinetic 306 | 43 119 144 Thermal 300 | 12 88 200 Explosive . | . . . Electromagnetic . | . . . Impact . | . . . Slashing . | . . . Piercing . | . . . Highest Corruption 1 | . . 1 Average Corruption 1 | . . 1 Corruption Purged . | . . . Corruption Blocked . | . . . Effects 3 | . . 3 Heat Flow Errors 1 | . . 1 Energy Discharges 1 | . . 1 Weapon Failures 1 | . . 1 Overload Shots . | . . . Overflow Damage . | . . . Projectiles . | . . . Explosions . | . . . Melee . | . . . Knockbacks . | . . . Impact . | . . . Kinetic . | . . . Secondary . | . . . Self-Inflicted Damage . | . . . Shots . | . . . Rammed . | . . . Targets Rammed . | . . . Kicked . | . . . Crushed . | . . . Highest Temperature 180 | 18 72 180 Average Temperature 39 | 9 23 56 Received Heat Transfer 426 | . 36 390 Siege Activations . | . . . Martial Activations . | . . . Shielding Activations . | . . . Robots Disrupted . | . . . Combat Hostiles . | . . . Robots Corrupted . | . . . Combat Hostiles . | . . . Parts Fried . | . . . Impact Corruptions . | . . . Robots Melted . | . . . Combat Hostiles . | . . . Parts Melted 4 | . . 4 Heat Transferred 1036 | 37 259 740 Parts Sabotaged . | . . . Parts Stolen . | . . . Parts Stripped . | . . . Power Chain Reactions . | . . . Alert | -11 -10 -9 ------- Run | Yrd Mat Mat Maximum Alert Level . | . . . Low Security (%) 100 | 100 100 100 Level 1 . | . . . Level 2 . | . . . Level 3 . | . . . Level 4 . | . . . Level 5 . | . . . High Security . | . . . Max Security . | . . . Peak Influence 150 | 5 30 150 Initial 2 | . . 2 Average 36 | . 3 98 Influence Increases 287 | 5 37 245 Destroy 0b10 Robot/C 140 | . 20 120 Destroy 0b10 Robot/NC 10 | 5 5 . Destroy Leader 32 | . 12 20 Lose Combat Pursuer 105 | . . 105 Influence Decreases 202 | 5 30 167 Entered New Map 5 | . . 5 Time Decay 127 | 5 30 92 Lost Part 70 | . . 70 Squads Dispatched 3 | . 2 1 Investigation 1 | . . 1 Extermination . | . . . Reinforcement 2 | . 2 . Assault . | . . . Garrison . | . . . Intercept . | . . . Searches Triggered . | . . . Construction Impeded . | . . . Haulers Reinforced . | . . . Active Scanning Responses . | . . . Cargo Convoy Interrupts . | . . . Stealth | -11 -10 -9 --------- Run | Yrd Mat Mat Distress Signals 1 | . 1 . Communications Jammed . | . . . Distress Signals . | . . . Times Spotted 22 | . 2 20 Peak Tracking Total 8 | . 1 8 Tactical Retreats 3 | . . 3 Traps | -11 -10 -9 ------- Run | Yrd Mat Mat Traps Triggered . | . . . Indirectly . | . . . Trap Hack Attempts . | . . . Triggered . | . . . Disarmed . | . . . Reprogrammed . | . . . Reused . | . . . Traps Extracted . | . . . Installed . | . . . Triggered . | . . . Machines | -11 -10 -9 ---------- Run | Yrd Mat Mat Machines Disabled . | . . . Max in Single Turn . | . . . Machines Repaired . | . . . Machines Dismantled . | . . . Machines Sabotaged . | . . . Overloaded Fab Kills . | . . . Hacking | -11 -10 -9 --------- Run | Yrd Mat Mat Machines Accessed 2 | . 1 1 Terminals 2 | . 1 1 Fabricators . | . . . Repair Stations . | . . . Recycling Units . | . . . Scanalyzers . | . . . Garrison Access . | . . . Total Hacks 3 | . 1 2 Successful 1 | . 1 . Failed 2 | . . 2 Catastrophic 1 | . . 1 Database Lockouts . | . . . Manual 1 | . 1 . Terminals 3 | . 1 2 Fabricators . | . . . Repair Stations . | . . . Recycling Units . | . . . Scanalyzers . | . . . Garrison Access . | . . . Terminal Hacks 1 | . 1 . Transport Status 1 | . 1 . Fabricator Hacks . | . . . Repair Station Hacks . | . . . Recycling Unit Hacks . | . . . Scanalyzer . | . . . Garrison Access Hacks . | . . . Unauthorized Hacks . | . . . Terminals . | . . . Fabricators . | . . . Repair Stations . | . . . Recycling Units . | . . . Scanalyzers . | . . . Garrison Access . | . . . Data Cores Recovered . | . . . Used . | . . . Hacking Detections 3 | . 2 1 Full Trace Events 1 | . . 1 Feedback Events 1 | . . 1 Corruption 1 | . . 1 Feedback Blocked . | . . . Robot Schematics Acquired . | . . . Robots Built . | . . . Authchips . | . . . Time . | . . . Total Robot Build Rating . | . . . Part Schematics Acquired . | . . . Parts Built . | . . . Authchips . | . . . Time . | . . . Total Part Build Rating . | . . . Part Studies Acquired . | . . . Parts Repaired . | . . . Time . | . . . Parts Recycled . | . . . Recycled Matter . | . . . Retrieved Matter . | . . . Retrieved Components . | . . . Parts Scanalyzed . | . . . Part Schematics Acquired . | . . . Parts Damaged . | . . . Bothacking | -11 -10 -9 ------------ Run | Yrd Mat Mat Used RIF Installer . | . . . Robots Hacked . | . . . Non-combat . | . . . Combat . | . . . Robot Hacks Applied . | . . . Relay Couplers Released . | . . . Fabnet Peak Effective % . | . . . Robots Rewired . | . . . Allies Hacked . | . . . Hacks Repelled . | . . . Allies | -11 -10 -9 -------- Run | Yrd Mat Mat Total Allies . | . . . Largest Group . | . . . Highest-Rated Group . | . . . Highest-Rated Ally . | . . . Total Orders . | . . . Ally Attacks . | . . . Total Damage . | . . . Kills . | . . . Allies Corrupted . | . . . Allies Melted . | . . . Intel | -11 -10 -9 ------- Run | Yrd Mat Mat Active Infowar (turns) 516 | 8 295 213 Optics 446 | . 233 213 Terrain 70 | 8 62 . Robot Analysis Total . | . . . Derelict Logs Recovered . | . . . Drone Launches . | . . . Drone Recoveries . | . . . Exploration | -11 -10 -9 ------------- Run | Yrd Mat Mat Turns Passed 603 | 95 295 213 Spaces Moved 390 | 62 203 125 Core 9 | 9 . . Treads . | . . . Legs 381 | 53 203 125 Wheels . | . . . Hover . | . . . Flight . | . . . Fastest Speed 50 | 50 120 120 Average Speed 118 | 109 120 121 Slowest Speed 260 | 120 120 260 Overloaded Moves . | . . . Propulsion Burnouts . | . . . Robots Hopped . | . . . Potential Cave-ins . | . . . Cave-ins Triggered . | . . . Exploration Rate (%) 22 | 5 49 13 Regions Visited 2 Branch Regions . Pre-discovered Areas . | . . . Known Exits Taken . | . . . Unknown Exits Taken 2 | 1 1 . Scrap Searched . | . . . Spaces Dug . | . . . Terrain Destroyed . | . . . Melee . | . . . Projectile . | . . . AOE . | . . . Terrain Rammed . | . . . Walls Destroyed . | . . . Machines Disabled . | . . . Actions | -11 -10 -9 --------- Run | Yrd Mat Mat Total 465 | 82 229 154 Wait 1 | . 1 . Move 388 | 61 202 125 Hop . | . . . Pick Up 22 | 10 8 4 Fast Attach . | . . . Attach 11 | 7 . 4 Detach . | . . . Swap 4 | 1 2 1 Drop 2 | . 2 . Fire 37 | 3 14 20 Melee . | . . . Ram . | . . . Kick . | . . . Crush . | . . . Escape Stasis . | . . . Rewire . | . . . Trap . | . . . Miscellaneous . | . . . Route ------- -11/Scrapyard -10/Materials (discovered 3 exits: *Mat / [*Min x2]) -9/Materials History --------- Turn | Location | Event 6 | -11/Scrapyard | Discovered new exit (range 15) 96 | -11/Scrapyard | Entered Materials 97 | -10/Materials | Met a group of wandering Federalists 177 | -10/Materials | Discovered new exit (range 8) 225 | -10/Materials | Discovered new exit (range 11) 282 | -10/Materials | Discovered new exit (range 8) 302 | -10/Materials | Build established: Mutant 391 | -10/Materials | Entered another Materials area 391 | -9/Materials | Evolved 2 slots: Propulsion x2 603 | -9/Materials | Core integrity fell below 50% 604 | -9/Materials | Self-destructed Last Messages --------------- Aluminum Leg destroyed. Processing Tank disabled. Y-45 Defender heat short circuits Heat Sink. Melted Hvy. Assault Rifle. Critical hit (Burn: +37). Y-45 Defender heat spikes uncontrollably. Lgt. Armor Plating melted. Heat Sink melted. Y-45 Defender destroyed. Acquired 5 matter. Critical hit (Burn: +37). Acquired Prototype Engine. Identified Hvy. Ion Engine. Acquired Prototype Ballistic Gun. Aluminum Leg destroyed. Identified Imp. Assault Rifle. Med. Laser destroyed. Aluminum Leg destroyed. K-01 Serf collects debris. Aluminum Leg destroyed. Map ----- +----------------------------------------------------+ | ????????#######??????????#""" " "" #??????????? | | ?######## #??????????# % #??????????? | | ?# " #?????############+######??????????? | | ?# "T #?????# # #?????????????? | | ?# #?????#""" # ##########????? | | ?######## #?????#""" + " | | ????????## ########""" # ########??????? | | ?????????# # # "" # #?????????????? | | ?????????# # # T" ### ###?????????????? | | ?????????+ / # "" #?# #???????????????? | | ?????????# # # #?# #???????????????? | | ?????????# # =* ##########?# #???????????????? | | ?????????# # *[= #?????######/###?????????????? | | ?????????# ####/###?????# #?????????????? | | ?????????# #??#%#???????# " #?????????????? | | ?????????# #??#=#???????# T #?????????????? | | ?????????# #??# #???????# " #?????????????? | | ?????????# #??# #???????# #?????????????? | | ?????????# #??# #???????# """ [ #?????????????? | | ?????????# #??# #???????#! """ #?????????????? | | ????????? ???# #???????# """ #?????????????? | | ????????? ???# #???????# #??? #????????? | | ????????? ??## #############/##### #????????? | | ????????? ??# r !*!% gY #????????? | | ???????? ??# =%* g g #????????? | | ?????????? ??# a k @l[g[ #????????? | | ???????????????# ######################????????? | | ???????????????# #?????????????????????????????? | | ???????????????# #?????????????????????????????? | | ???????????????# #?????????????????????????????? | | ??????????????? ?????????????????????????????? | | ??????????????# ?????????????????????????????? | | ??????????????# ?????????????????????????????? | | ??????????????# ?????????????????????????????? | | ?????????????? ?????????????????????????????? | | ??????????????## ##????????????????????????????? | | ???????????????# #?????????????????????????????? | | ???????????????# ??????????????????????????????? | | ???????????????# ??????????????????????????????? | | ???????????????? ??????????????????????????????? | | ???????????????? ??????????????????????????????? | | ?????????????????????????????????????????????????? | | ?????????????????????????????????????????????????? | | ?????????????????????????????????????????????????? | | ?????????????????????????????????????????????????? | | ?????????????????????????????????????????????????? | | ?????????????????????????????????????????????????? | | ?????????????????????????????????????????????????? | | ?????????????????????????????????????????????????? | | ?????????????????????????????????????????????????? | +----------------------------------------------------+ Best States ------------- Heat Dissipation 28 Energy Generation 14 Energy Capacity 280 Matter Stores 300 Matter Capacity 300 Sight Range 18 Terrain Scan Range 16 Terrain Scan Density 10 Evasion (%) 55 Item Schematics ----------------- None Robot Schematics ------------------ None Fabricated ------------ Nothing Repaired ---------- Nothing Studied --------- None Alien Tech Used ----------------- None Achievements -------------- None Challenges ------------ None Game ------ Seed AbsorptionTacticalLegs Manual? 0 Play Time 00:10:41 Cumulative 7.1 hours Start 2025.11.02 @ 13:44:17 End 2025.11.02 @ 13:52:15 Sessions 1 Manual Loads 0 Difficulty Rogue Special Mode None Game No. 25 Rogue 25 Adventurer 0 Explorer 0 Win Type - Total 0 Types 0/0/0/0/0/0/0/0/0/0 Lore% 9 Gallery% 12 Achievement% 12 Wizard Run 0 Options --------- Layout 1 ASCII 0 Keyboard 0 Movement Numpad Keybinds 0 Fullscreen 1 Font 32/SmallcapsGlow Map View 130x35 Zoom Use 0% Tactical HUD 0 Map Filters NONE Filters NONE Steam 1 RUN: 78b16d44-b37d-458f-95e5-9c315800c6c8